bitfinex/quotes_BTCUSD_20250829
["timestamp","ask_amount","ask_price","bid_price","bid_amount"]
[1756479155701,0.21406662,108540.0,108530.0,0.23967502]
[1756479155961,0.02124002,108540.0,108530.0,0.23967502]
[1756479156164,0.21406629,108540.0,108530.0,0.05333418]
[1756479156392,0.22350956,108540.0,108530.0,0.05333418]
[1756479156597,0.22350956,108540.0,108530.0,0.05539418]
[1756479156805,0.22048956,108540.0,108530.0,0.23967502]
[1756479157023,0.22048956,108540.0,108530.0,0.05333418]
[1756479157251,0.22350956,108540.0,108530.0,0.05333418]
[1756479157679,0.22048956,108540.0,108530.0,0.05539418]
[1756479157894,0.22048956,108540.0,108530.0,0.23967502]
[1756479158111,0.02771243,108540.0,108530.0,0.23967502]
[1756479158334,0.02771243,108540.0,108530.0,1.14916132]
[1756479158777,0.01058699,108540.0,108530.0,1.23745764]
[1756479160320,0.00202458,108540.0,108530.0,1.25839646]
[1756479161390,0.00202458,108540.0,108530.0,1.64839646]
[1756479162046,0.00202458,108540.0,108530.0,0.68890016]
[1756479162261,0.00102458,108540.0,108530.0,1.59539646]
[1756479162539,0.00102458,108540.0,108530.0,1.25539646]
[1756479162751,0.00102458,108540.0,108530.0,1.26039646]
[1756479162958,0.00202458,108540.0,108530.0,1.26039646]
[1756479163162,0.00202458,108540.0,108530.0,1.25539646]
[1756479163372,0.00202458,108540.0,108530.0,1.23146764]
[1756479163572,0.00202458,108540.0,108530.0,1.23845764]
[1756479163996,0.00302458,108540.0,108530.0,1.24445764]
[1756479164220,0.00302458,108540.0,108530.0,0.33796134]
[1756479164434,0.00302458,108540.0,108530.0,1.24445764]
[1756479165061,0.00511458,108540.0,108530.0,1.24146764]
[1756479165664,0.00302458,108540.0,108530.0,1.24146764]
[1756479165870,0.19239844,108540.0,108530.0,0.33291134]
[1756479166027,0.18426386,108540.0,108530.0,0.33291134]
[1756479166233,0.18635386,108540.0,108530.0,0.33291134]
[1756479166471,0.00209,108540.0,108530.0,0.33497134]
[1756479166685,0.00209,108540.0,108530.0,1.15616132]
[1756479166888,0.18635386,108540.0,108530.0,0.24966502]
[1756479167102,0.18635386,108540.0,108530.0,1.15616132]
[1756479167832,0.00209,108540.0,108530.0,1.15616132]
[1756479168001,0.21804106,108550.0,108530.0,1.15616132]
[1756479168231,0.20989562,108550.0,108540.0,0.18426386]
[1756479168445,0.02564869,108550.0,108540.0,1.14652203]
[1756479168576,0.00854956,108550.0,108540.0,1.14652203]
[1756479168776,0.00854956,108550.0,108540.0,1.23481835]
[1756479169193,0.00854956,108550.0,108540.0,0.32832205]
[1756479169394,0.00854956,108550.0,108540.0,1.23481835]
[1756479169596,0.00854956,108550.0,108540.0,0.32832205]
[1756479169989,0.00954956,108550.0,108540.0,0.33332205]
[1756479170230,0.19577645,108550.0,108540.0,0.18926386]
[1756479170442,0.21564329,108550.0,108540.0,0.005]
[1756479170909,0.22205894,108550.0,108540.0,0.005]
[1756479171138,0.22205894,108550.0,108540.0,0.008]
[1756479172288,0.21928894,108550.0,108540.0,0.008]
[1756479172498,0.21928894,108550.0,108540.0,0.19226386]
[1756479172759,0.21928894,108550.0,108540.0,0.04267847]
[1756479173278,0.18426386,108540.0,108530.0,0.00024]
[1756479173675,0.21632591,108540.0,108530.0,0.00024]
[1756479173905,0.22107591,108540.0,108530.0,0.00024]
[1756479174762,0.21842591,108540.0,108530.0,0.00024]
[1756479175212,0.21842591,108540.0,108530.0,0.00324]
[1756479175689,1.55586853,108540.0,108530.0,0.00324]
[1756479175929,0.64937223,108540.0,108530.0,0.00324]
[1756479176143,0.64937223,108540.0,108530.0,0.00824]
[1756479176364,0.65037223,108540.0,108530.0,0.00824]
[1756479176582,1.5803057,108540.0,108530.0,0.00824]
[1756479176802,0.6738094,108540.0,108530.0,0.00824]
[1756479177015,0.65039635,108540.0,108530.0,0.00824]
[1756479177229,1.55689265,108540.0,108530.0,0.00824]
[1756479177876,1.55689265,108540.0,108530.0,0.00524]
[1756479178403,0.65039635,108540.0,108530.0,0.00624]
[1756479178617,1.55689265,108540.0,108530.0,0.00624]
[1756479178841,1.55689265,108540.0,108530.0,0.00524]
[1756479179082,0.65039635,108540.0,108530.0,0.00524]
[1756479179297,1.55789265,108540.0,108530.0,0.00824]
[1756479179545,0.65039635,108540.0,108530.0,0.00124]
[1756479179774,1.55689265,108540.0,108530.0,0.00124]
[1756479179988,1.55689265,108540.0,108530.0,0.00324]
[1756479180644,0.5243148,108510.0,108500.0,0.26848924]
[1756479180886,0.55207697,108510.0,108500.0,0.27064924]
[1756479181105,0.53288013,108510.0,108500.0,0.45498103]
[1756479181333,0.53288013,108510.0,108500.0,0.45816103]
[1756479181334,0.35713379,108510.0,108500.0,0.45816103]
[1756479181553,0.35713379,108510.0,108500.0,0.52241201]
[1756479181554,0.54144859,108510.0,108500.0,0.52241201]
[1756479181783,0.54354326,108510.0,108500.0,0.33274022]
[1756479181992,0.54354326,108510.0,108500.0,0.33808022]
[1756479182204,0.54354326,108510.0,108500.0,0.33855837]
[1756479182413,0.5264148,108510.0,108500.0,0.33737837]
[1756479182618,0.5253148,108510.0,108500.0,0.52889016]
[1756479182829,0.341,108510.0,108500.0,0.52889016]
[1756479183279,0.001,108510.0,108500.0,0.61718648]
[1756479183904,0.001,108510.0,108500.0,1.52368278]
[1756479185156,0.3396,108530.0,108500.0,1.53289936]
[1756479185371,0.36526081,108530.0,108520.0,0.18429782]
[1756479185586,0.02566081,108530.0,108520.0,1.13268919]
[1756479185795,0.01710721,108530.0,108520.0,1.22098551]
[1756479186005,0.18424731,108550.0,108540.0,0.18426386]
[1756479186220,0.21828561,108550.0,108540.0,0.03685296]
[1756479186436,0.18427651,108540.0,108520.0,0.3163141]
[1756479186648,0.20992349,108540.0,108530.0,0.18644084]
[1756479186874,0.20992349,108540.0,108520.0,0.22801778]
[1756479186875,0.21832549,108540.0,108520.0,0.22801778]
[1756479187102,0.18528084,108530.0,108520.0,0.00418]
[1756479187315,1.45742412,108530.0,108520.0,0.00147815]
[1756479187524,1.46218412,108530.0,108520.0,0.00147815]
[1756479187733,1.46218412,108530.0,108520.0,0.18793597]
[1756479187734,0.55392782,108530.0,108520.0,0.18793597]
[1756479187961,0.55392782,108530.0,108520.0,0.18577597]
[1756479188170,0.55392782,108530.0,108520.0,0.0458917]
[1756479188376,0.55292782,108530.0,108520.0,0.0458917]
[1756479188794,0.55092782,108530.0,108520.0,0.23552952]
[1756479189006,0.36564698,108530.0,108520.0,0.19011597]
[1756479189468,0.34854899,108530.0,108520.0,0.19011597]
[1756479189679,0.01708572,108530.0,108520.0,0.19011597]
[1756479189894,0.01708572,108530.0,108520.0,1.18490859]
[1756479190106,0.003,108550.0,108540.0,0.18426386]
[1756479190319,0.01794094,108550.0,108540.0,0.22645833]
[1756479190546,0.02861293,108550.0,108540.0,0.31475465]
[1756479191206,0.02861293,108550.0,108540.0,1.31306977]
[1756479191637,0.0721143,108590.0,108580.0,0.18419598]
[1756479191876,0.1041613,108590.0,108580.0,0.18635598]
[1756479192096,0.29044032,108590.0,108570.0,0.25509295]
[1756479192312,0.18419598,108580.0,108570.0,0.11604974]
[1756479192525,0.18421295,108570.0,108550.0,0.25826583]
[1756479192735,0.18422991,108560.0,108550.0,0.25826583]
[1756479192948,0.18422991,108560.0,108550.0,0.07622]
[1756479193204,0.20986751,108560.0,108550.0,0.00216]
[1756479193420,0.21196751,108560.0,108550.0,0.18640689]
[1756479193623,0.0256376,108560.0,108550.0,0.24040836]
[1756479193834,0.20986751,108560.0,108550.0,0.24040836]
[1756479194043,0.21196751,108560.0,108550.0,0.05082147]
[1756479194251,0.21196751,108560.0,108550.0,0.23722836]
[1756479194476,0.21196751,108560.0,108550.0,0.05082147]
[1756479194654,0.0256376,108560.0,108550.0,0.19188997]
[1756479194890,0.21184751,108560.0,108540.0,0.23033152]
[1756479195102,0.19277576,108560.0,108550.0,0.18958689]
[1756479195316,0.18424689,108550.0,108540.0,0.22429833]
[1756479195527,0.21198241,108550.0,108540.0,0.03685447]
[1756479195737,0.20988241,108550.0,108540.0,0.22645833]
[1756479196166,0.21198241,108550.0,108540.0,0.22111833]
[1756479196389,0.20988241,108550.0,108540.0,0.18642386]
[1756479196598,0.20987083,108550.0,108540.0,0.00534]
[1756479196806,0.21197083,108550.0,108540.0,0.00216]
[1756479197032,0.20987083,108550.0,108540.0,0.18960386]
[1756479197254,0.02562394,108550.0,108540.0,0.23919496]
[1756479197666,0.20987083,108550.0,108540.0,0.24119496]
[1756479198116,0.20987083,108550.0,108540.0,0.23919496]
[1756479198353,0.20987083,108550.0,108540.0,0.24219496]
[1756479198560,0.21087083,108550.0,108540.0,0.24419496]
[1756479198782,0.02662394,108550.0,108540.0,0.24419496]
[1756479198999,0.001,108550.0,108540.0,0.24419496]
[1756479199202,0.001,108550.0,108540.0,1.23898758]
[1756479199418,0.18524689,108550.0,108540.0,0.33249128]
[1756479199652,0.21084183,108550.0,108540.0,0.24419496]
[1756479199864,0.20231028,108550.0,108540.0,0.24419496]
[1756479200282,0.20231028,108550.0,108540.0,0.0599311]
[1756479200490,0.18722689,108550.0,108540.0,0.0567511]
[1756479200690,0.20428155,108550.0,108540.0,0.24101496]
[1756479200845,0.20230155,108550.0,108540.0,0.24423496]
[1756479201067,0.01805466,108550.0,108540.0,0.24423496]
[1756479201268,0.20230155,108550.0,108540.0,0.24423496]
[1756479201494,0.20030155,108550.0,108540.0,0.24423496]
[1756479202296,0.21081342,108550.0,108540.0,0.0567511]
[1756479202513,1.11730972,108550.0,108540.0,0.0545911]
[1756479202733,0.21081342,108550.0,108540.0,0.0545911]
[1756479202948,1.12648143,108550.0,108540.0,0.005]
[1756479203165,0.21998513,108550.0,108540.0,0.005]
[1756479203378,0.21081342,108550.0,108540.0,0.005]
[1756479203600,0.2152361,108550.0,108540.0,0.19690715]
[1756479203816,0.02458653,108550.0,108540.0,0.23981063]
[1756479204235,0.20883342,108550.0,108540.0,0.23981063]
[1756479204444,0.02459157,108550.0,108540.0,0.23981063]
[1756479204659,0.20883846,108550.0,108540.0,0.23981063]
[1756479205090,0.02459157,108550.0,108540.0,0.23981063]
[1756479205321,0.21081846,108550.0,108540.0,0.005]
[1756479205547,1.11731476,108550.0,108540.0,0.005]
[1756479205770,1.12371645,108550.0,108540.0,0.005]
[1756479205998,0.21524015,108550.0,108540.0,0.19690715]
[1756479206243,0.20883846,108550.0,108540.0,0.19138386]
[1756479206452,0.21082846,108550.0,108540.0,0.05600172]
[1756479206661,0.21082846,108550.0,108540.0,0.05388172]
[1756479207094,1.53232745,108550.0,108540.0,0.005]
[1756479207315,1.53873043,108550.0,108540.0,0.005]
[1756479208096,1.53873043,108550.0,108540.0,0.003]
[1756479208943,1.53597043,108550.0,108540.0,0.003]
[1756479209140,0.18428084,108530.0,108520.0,0.19673219]
[1756479209364,0.5242773,108540.0,108520.0,0.25264831]
[1756479209579,0.53281839,108540.0,108530.0,0.18980435]
[1756479209799,0.34854109,108540.0,108530.0,0.18962084]
[1756479210252,0.53280495,108540.0,108530.0,0.00534]
[1756479210460,0.53478495,108540.0,108530.0,0.00534]
[1756479210811,0.53280495,108540.0,108530.0,0.00534]
[1756479211253,0.18428084,108530.0,108520.0,0.32838974]
[1756479211448,0.18428084,108530.0,108520.0,0.32850974]
[1756479211791,0.19282878,108530.0,108520.0,0.05913612]
[1756479212000,0.19282878,108530.0,108520.0,0.24343394]
[1756479212212,0.19282878,108530.0,108520.0,0.05913612]
[1756479212430,0.19481878,108530.0,108520.0,0.05379612]
[1756479212851,0.19481878,108530.0,108520.0,0.00047815]
[1756479213059,0.20122965,108530.0,108520.0,0.00047815]
[1756479213271,0.20122965,108530.0,108520.0,0.00247815]
[1756479213480,0.20122965,108530.0,108520.0,0.00781815]
[1756479213481,0.2163336,108530.0,108520.0,0.00781815]
[1756479213935,0.2183336,108530.0,108520.0,0.00781815]
[1756479214145,0.2183336,108530.0,108520.0,0.00459815]
[1756479214360,0.2163336,108530.0,108520.0,0.00781815]
[1756479214559,0.2163336,108530.0,108520.0,0.19211597]
[1756479214770,0.2163336,108530.0,108520.0,0.24095607]
[1756479214976,0.2183336,108530.0,108520.0,0.05343825]
[1756479215177,0.2163336,108530.0,108520.0,0.05665825]
[1756479215605,0.2163336,108530.0,108520.0,0.00247815]
[1756479215606,0.5610936,108530.0,108520.0,0.00247815]
[1756479215834,0.5583336,108530.0,108520.0,0.00247815]
[1756479216069,0.5563336,108530.0,108520.0,0.00459815]
[1756479216295,0.5563336,108530.0,108520.0,0.00781815]
[1756479216506,0.5583136,108530.0,108520.0,0.00247815]
[1756479216728,1.48208154,108530.0,108520.0,0.00247815]
[1756479216953,1.47931154,108530.0,108520.0,0.00247815]
[1756479217170,1.48208154,108530.0,108520.0,0.00247815]
[1756479217423,1.57037786,108530.0,108520.0,0.00247815]
[1756479217631,1.54687358,108530.0,108520.0,0.00247815]
[1756479217869,1.5676119,108530.0,108520.0,0.00247815]
[1756479218083,0.57281928,108530.0,108520.0,0.00247815]
[1756479218293,0.57281928,108530.0,108520.0,0.00047815]
[1756479218499,0.57381928,108530.0,108520.0,0.00347815]
[1756479218757,1.48308558,108530.0,108520.0,0.00347815]
[1756479218974,1.5713819,108530.0,108520.0,0.00347815]
[1756479219188,1.5723819,108530.0,108520.0,0.00347815]
[1756479219408,0.6658856,108530.0,108520.0,0.00047815]
[1756479219628,1.5723819,108530.0,108520.0,0.00047815]
[1756479219841,1.5696119,108530.0,108520.0,0.00047815]
[1756479220080,0.6631156,108530.0,108520.0,0.00047815]
[1756479220308,0.6631156,108530.0,108520.0,0.19241969]
[1756479220309,0.57283928,108530.0,108520.0,0.19241969]
[1756479220534,0.57283928,108530.0,108520.0,0.19011597]
[1756479220535,0.0330568,108530.0,108520.0,0.19011597]
[1756479220747,0.02664544,108530.0,108520.0,0.19011597]
[1756479221401,0.21092628,108530.0,108520.0,0.00581815]
[1756479221639,0.02664544,108530.0,108520.0,0.19241969]
[1756479221843,0.02664544,108530.0,108520.0,0.27841229]
[1756479222059,0.02564544,108530.0,108520.0,1.27320491]
[1756479222261,0.35422911,108540.0,108530.0,0.18428084]
[1756479222470,0.54490703,108540.0,108530.0,0.18862084]
[1756479222724,0.54490703,108540.0,108530.0,0.00534]
[1756479222946,0.18428084,108530.0,108520.0,0.27307229]
[1756479223167,0.18428084,108530.0,108520.0,0.27729229]
[1756479223377,0.18428084,108530.0,108520.0,0.19111597]
[1756479224512,0.18627084,108530.0,108520.0,0.00147815]
[1756479224737,0.19268422,108530.0,108520.0,0.00147815]
[1756479225175,0.62374054,108530.0,108520.0,0.00147815]
[1756479225404,1.53023684,108530.0,108520.0,0.00147815]
[1756479226060,1.55795184,108530.0,108520.0,0.00147815]
[1756479226281,0.65145554,108530.0,108520.0,0.00147815]
[1756479226494,1.55795184,108530.0,108520.0,0.00047815]
[1756479227135,1.55895184,108530.0,108520.0,0.00047815]
[1756479227565,1.55795184,108530.0,108520.0,0.00047815]
[1756479227973,1.55895184,108530.0,108520.0,0.00047815]
[1756479228206,1.55895563,108530.0,108520.0,0.00047815]
[1756479229597,1.64725195,108530.0,108520.0,0.00047815]
[1756479229822,1.55895563,108530.0,108520.0,0.00047815]
[1756479231186,1.55619563,108530.0,108520.0,0.00047815]
[1756479231610,1.55895563,108530.0,108520.0,0.00047815]
[1756479231812,6.55895563,108530.0,108520.0,0.00047815]
[1756479232024,6.64725195,108530.0,108520.0,0.00047815]
[1756479232460,0.18434878,108490.0,108480.0,0.14089807]
[1756479232672,1.1811414,108490.0,108480.0,0.14089807]
[1756479233311,1.19031837,108490.0,108480.0,0.14089807]
[1756479233522,0.28106207,108490.0,108480.0,0.14089807]
[1756479233737,1.16803623,108490.0,108480.0,0.14089807]
[1756479233946,0.26153993,108490.0,108480.0,0.14089807]
[1756479234163,1.19368665,108490.0,108480.0,0.14089807]
[1756479234982,0.28719035,108490.0,108480.0,0.14089807]
[1756479235192,1.19368665,108490.0,108480.0,0.14089807]
[1756479235598,0.28919035,108490.0,108480.0,0.14089807]
[1756479235815,0.53889403,108490.0,108480.0,0.14598807]
[1756479236035,0.53889403,108490.0,108480.0,0.14698807]
[1756479236249,1.53566665,108490.0,108480.0,0.14189807]
[1756479236457,1.53566665,108490.0,108480.0,0.14386807]
[1756479236907,1.53566665,108490.0,108480.0,0.14189807]
[1756479237129,0.62917035,108490.0,108480.0,0.14189807]
[1756479237340,1.53566665,108490.0,108480.0,0.14386807]
[1756479237550,1.53368665,108490.0,108480.0,0.14698807]
[1756479238001,0.62719035,108490.0,108480.0,0.14698807]
[1756479238207,1.53368665,108490.0,108480.0,0.14698807]
[1756479238417,0.62719035,108490.0,108480.0,0.14698807]
[1756479238630,0.53889403,108490.0,108480.0,0.18529971]
[1756479238832,0.55888697,108490.0,108480.0,0.36966549]
[1756479239055,0.55888697,108490.0,108480.0,0.18529971]
[1756479239531,0.02812614,108490.0,108480.0,0.33135385]
[1756479239753,0.02812614,108490.0,108480.0,0.41965017]
[1756479239968,0.01957667,108490.0,108480.0,0.44058899]
[1756479240180,0.01957667,108490.0,108480.0,1.34708529]
[1756479240393,0.01757667,108490.0,108480.0,0.43958899]
[1756479240623,0.01757667,108490.0,108480.0,0.51425272]
[1756479240835,0.01857667,108490.0,108480.0,1.42374902]
[1756479241078,0.01857667,108490.0,108480.0,1.46461228]
[1756479241524,0.00147786,108490.0,108480.0,1.46461228]
[1756479241746,1e-08,108490.0,108480.0,1.51661228]
[1756479241966,0.0721143,108530.0,108520.0,0.18429782]
[1756479242191,1.19497026,108530.0,108520.0,0.00014266]
[1756479242424,0.63053396,108530.0,108520.0,0.00014266]
[1756479242638,0.62847396,108530.0,108520.0,0.18953048]
[1756479242843,0.55635966,108530.0,108520.0,0.18953048]
[1756479243287,0.55635966,108530.0,108520.0,0.18853048]
[1756479243496,0.37207882,108530.0,108520.0,0.22581437]
[1756479243708,0.37207882,108530.0,108520.0,0.22781437]
[1756479243709,0.55635966,108530.0,108520.0,0.22781437]
[1756479243945,0.55841966,108530.0,108520.0,0.22358171]
[1756479244169,0.55841966,108530.0,108520.0,0.002]
[1756479244381,1.46491596,108530.0,108520.0,0.002]
[1756479244590,1.46491596,108530.0,108520.0,0.18826782]
[1756479244809,0.55636071,108530.0,108520.0,0.19138782]
[1756479245036,0.55636071,108530.0,108520.0,0.22995797]
[1756479245252,0.55842071,108530.0,108520.0,0.22683797]
[1756479245465,0.55636071,108530.0,108520.0,0.22683797]
[1756479245706,0.55842071,108530.0,108520.0,0.22683797]
[1756479245922,0.55842071,108530.0,108520.0,0.22486797]
[1756479246350,0.55842071,108530.0,108520.0,0.22683797]
[1756479246562,0.55636071,108530.0,108520.0,0.22683797]
[1756479246773,0.55842071,108530.0,108520.0,0.22683797]
[1756479246959,0.55842071,108530.0,108520.0,0.22486797]
[1756479247445,0.37207987,108530.0,108520.0,0.22995797]
[1756479247904,0.55842071,108530.0,108520.0,0.22683797]
[1756479248129,0.55842071,108530.0,108520.0,0.22486797]
[1756479248349,0.55843089,108530.0,108520.0,0.22486797]
[1756479248772,0.55843035,108530.0,108520.0,0.22683797]
[1756479249041,0.55842926,108530.0,108520.0,0.22683797]
[1756479249268,0.55842926,108530.0,108520.0,0.22995797]
[1756479249520,0.37208842,108530.0,108520.0,0.22995797]
[1756479249730,0.03208842,108530.0,108520.0,1.13645427]
[1756479249939,0.03208842,108530.0,108520.0,1.24568941]
[1756479250603,1e-08,108530.0,108520.0,1.63568941]
[1756479250838,1.19857176,108590.0,108580.0,0.18419598]
[1756479250839,0.0721143,108590.0,108580.0,0.18419598]
[1756479251057,0.09824794,108590.0,108580.0,0.17758963]
[1756479251272,0.62448696,108590.0,108580.0,0.17989207]
[1756479251494,0.55237266,108590.0,108580.0,0.17792207]
[1756479251710,0.21237266,108590.0,108580.0,0.17561963]
[1756479251922,0.18419598,108580.0,108560.0,0.2643214]
[1756479252142,0.18421295,108570.0,108560.0,0.1934414]
[1756479252352,0.18421295,108570.0,108560.0,0.18619991]
[1756479252353,0.19269071,108570.0,108560.0,0.18619991]
[1756479252558,0.19269071,108570.0,108560.0,0.18422991]
[1756479253217,0.19269071,108570.0,108550.0,0.18986043]
[1756479253458,1.09918701,108570.0,108560.0,0.18422991]
[1756479253673,0.18422991,108560.0,108550.0,0.00249354]
[1756479253885,0.19064767,108560.0,108550.0,0.00249354]
[1756479254112,0.19270767,108560.0,108550.0,0.00249354]
[1756479254334,1.44238397,108560.0,108550.0,0.00249354]
[1756479254544,1.53068029,108560.0,108550.0,0.00249354]
[1756479254789,1.52750029,108560.0,108550.0,0.00249354]
[1756479255009,0.62300399,108560.0,108550.0,0.00249354]
[1756479255435,1.52950029,108560.0,108550.0,0.00249354]
[1756479255648,0.53470767,108560.0,108550.0,0.19183043]
[1756479255869,0.34841776,108560.0,108550.0,0.22631976]
[1756479256120,0.34841776,108560.0,108550.0,0.22943976]
[1756479256121,0.53264767,108560.0,108550.0,0.22943976]
[1756479256556,0.34841776,108560.0,108550.0,0.22943976]
[1756479256791,0.53264767,108560.0,108550.0,0.22943976]
[1756479256998,0.34841776,108560.0,108550.0,0.22943976]
[1756479257446,0.53264767,108560.0,108550.0,0.22943976]
[1756479257664,0.00841776,108560.0,108550.0,0.22943976]
[1756479257872,0.00841776,108560.0,108550.0,0.31773608]
[1756479258079,0.00841776,108560.0,108550.0,0.31873608]
[1756479258290,0.00841776,108560.0,108550.0,0.36070215]
[1756479258682,0.002,108560.0,108550.0,0.36070215]
[1756479258938,0.002,108560.0,108550.0,1.26719845]
[1756479259144,0.002,108560.0,108550.0,1.35901727]
[1756479259780,0.52419753,108580.0,108560.0,0.1842147]
[1756479260040,0.53060151,108580.0,108560.0,0.20984126]
[1756479260460,0.18421295,108570.0,108560.0,0.20984126]
[1756479260892,0.19061563,108570.0,108560.0,0.21198126]
[1756479261100,0.19061563,108570.0,108560.0,0.21398126]
[1756479261321,0.18421295,108570.0,108560.0,0.21398126]
[1756479261529,0.52519753,108580.0,108560.0,0.21198126]
[1756479261742,0.53159783,108580.0,108560.0,0.21398126]
[1756479261977,0.18634295,108570.0,108560.0,0.02976656]
[1756479262154,0.19274325,108570.0,108560.0,0.18622991]
[1756479262627,0.20127446,108570.0,108560.0,0.18622991]
[1756479262805,0.1933368,108570.0,108560.0,0.18622991]
[1756479263013,0.03199385,108570.0,108560.0,0.18940991]
[1756479263226,0.03199385,108570.0,108560.0,0.23830884]
[1756479263641,0.2098065,108570.0,108560.0,0.23830884]
[1756479263879,0.2119365,108570.0,108560.0,0.04889893]
[1756479264098,0.18422991,108560.0,108550.0,0.04445961]
[1756479264312,0.18422991,108560.0,108550.0,0.18674043]
[1756479264313,0.9406179,108560.0,108550.0,0.18674043]
[1756479264572,0.21622151,108560.0,108550.0,0.18888043]
[1756479264813,0.21622151,108560.0,108550.0,0.22649875]
[1756479265056,0.0319916,108560.0,108550.0,0.22953875]
[1756479265916,0.0329916,108560.0,108550.0,0.22953875]
[1756479266141,0.21722151,108560.0,108550.0,0.04529186]
[1756479266367,0.21935151,108560.0,108550.0,0.22649875]
[1756479266583,0.21935151,108560.0,108550.0,0.04225186]
[1756479266803,0.21935151,108560.0,108550.0,0.04011186]
[1756479267013,0.21935151,108560.0,108550.0,0.22435875]
[1756479267226,0.21935151,108560.0,108550.0,0.22535875]
[1756479267449,0.21935151,108560.0,108550.0,0.22749875]
[1756479267709,1.12371781,108560.0,108550.0,0.23053875]
[1756479267932,1.12371781,108560.0,108550.0,0.22953875]
[1756479268063,0.9394879,108560.0,108550.0,0.22953875]
[1756479268315,0.21722151,108560.0,108550.0,0.22953875]
[1756479268516,0.21622151,108560.0,108550.0,0.22953875]
[1756479268981,0.21935151,108560.0,108550.0,0.22649875]
[1756479269130,0.21722151,108560.0,108550.0,0.22953875]
[1756479269337,0.20229225,108560.0,108550.0,0.22953875]
[1756479269530,0.03305276,108560.0,108550.0,0.22953875]
[1756479269756,0.01595795,108560.0,108550.0,0.23053875]
[1756479270180,0.92458425,108560.0,108550.0,0.22535875]
[1756479270427,0.92458425,108560.0,108550.0,0.22435875]
[1756479270428,1.12590373,108560.0,108550.0,0.22435875]
[1756479270557,1.12590373,108560.0,108550.0,0.04011186]
[1756479270752,1.12590373,108560.0,108550.0,0.18874043]
[1756479270958,1.12590373,108560.0,108550.0,0.19088043]
[1756479271235,0.03304752,108560.0,108550.0,0.19192043]
[1756479271578,0.21627743,108560.0,108550.0,0.19192043]
[1756479271784,0.03204752,108560.0,108550.0,0.19192043]
[1756479271992,0.03204752,108560.0,108550.0,0.23053875]
[1756479272775,0.03204752,108560.0,108550.0,0.31883507]
[1756479272982,0.01495221,108560.0,108550.0,1.22533137]
[1756479273181,0.0085474,108560.0,108550.0,1.22533137]
[1756479273385,0.0085474,108560.0,108550.0,0.36105022]
[1756479273505,0.0149528,108560.0,108550.0,0.23053875]
[1756479273704,0.0149528,108560.0,108550.0,0.23253875]
[1756479274327,0.0149528,108560.0,108550.0,0.32083507]
[1756479278001,0.0149528,108560.0,108550.0,0.31779507]
[1756479278245,0.0149528,108560.0,108550.0,0.32083507]
[1756479278714,0.03205388,108560.0,108550.0,0.32083507]
[1756479278933,0.0149528,108560.0,108550.0,1.24827019]
[1756479279607,0.0085474,108560.0,108550.0,1.24827019]
[1756479280246,1.27444313,108590.0,108580.0,0.18419598]
[1756479280485,0.4133434,108590.0,108580.0,0.22103534]
[1756479280702,0.05677475,108590.0,108580.0,0.22621534]
[1756479280928,0.03224241,108590.0,108580.0,0.31451166]
[1756479281351,0.03224241,108590.0,108580.0,0.33545048]
[1756479281560,0.03224241,108590.0,108580.0,1.24194678]
[1756479282030,0.03252375,108630.0,108620.0,0.18412815]
[1756479282258,0.00260815,108630.0,108620.0,0.18349166]
[1756479282472,1.44961268,108630.0,108620.0,0.18349166]
[1756479282687,1.11598868,108630.0,108620.0,0.2104765]
[1756479282920,0.18412815,108620.0,108600.0,0.26418064]
[1756479283153,1.0927714,108610.0,108600.0,0.18416206]
[1756479283367,1.11554443,108610.0,108590.0,0.1841377]
[1756479283599,0.20904813,108610.0,108600.0,0.18416206]
[1756479283816,0.20904813,108610.0,108600.0,0.08416206]
[1756479283996,0.20904813,108610.0,108600.0,0.21099204]
[1756479283997,0.20599813,108610.0,108600.0,0.21099204]
[1756479284241,0.02185303,108610.0,108600.0,0.21313204]
[1756479284455,0.31027922,108630.0,108610.0,0.1841451]
[1756479284456,0.34,108620.0,108610.0,0.1841451]
[1756479284664,0.34213,108620.0,108610.0,0.0841451]
[1756479284878,0.52625815,108620.0,108610.0,0.08644691]
[1756479285110,0.52625815,108620.0,108610.0,0.11649481]
[1756479285111,1.44716376,108620.0,108610.0,0.11649481]
[1756479285324,1.45021376,108620.0,108600.0,0.14103994]
[1756479285563,0.54371746,108620.0,108610.0,0.1841451]
[1756479285772,1.44716376,108620.0,108610.0,0.1841451]
[1756479285981,1.45021376,108620.0,108610.0,0.2166636]
[1756479286197,1.45021376,108620.0,108610.0,0.1156636]
[1756479286417,1.45221376,108620.0,108610.0,0.0325185]
[1756479286627,1.45321376,108620.0,108610.0,0.1841451]
[1756479286823,1.45321376,108620.0,108610.0,0.0841451]
[1756479286824,1.44816376,108620.0,108610.0,0.0841451]
[1756479287259,1.45116376,108620.0,108610.0,0.0841451]
[1756479287505,1.45116376,108620.0,108600.0,0.12518504]
[1756479287723,1.45116376,108620.0,108610.0,0.1841451]
[1756479287930,1.45421376,108620.0,108610.0,0.03123701]
[1756479288166,0.1841451,108610.0,108600.0,0.02518504]
[1756479288383,0.9064963,108610.0,108600.0,0.2093471]
[1756479288598,0.35640931,108620.0,108610.0,0.1841451]
[1756479288820,0.01540931,108620.0,108610.0,0.21761864]
[1756479289474,0.01440931,108620.0,108610.0,0.21761864]
[1756479289683,0.01440931,108620.0,108610.0,0.30176374]
[1756479290321,0.01440931,108620.0,108610.0,0.1851451]
[1756479290533,0.01440931,108620.0,108610.0,0.1872451]
[1756479292077,0.01440931,108620.0,108610.0,0.1851451]
[1756479292078,0.01973931,108620.0,108610.0,0.1851451]
[1756479292288,0.01655931,108620.0,108610.0,0.1851451]
[1756479292727,0.00215,108620.0,108610.0,0.1851451]
[1756479293154,1.09595445,108620.0,108610.0,0.001]
[1756479293379,1.09595445,108620.0,108610.0,0.1851451]
[1756479294035,1.46798401,108620.0,108610.0,0.001]
[1756479294251,1.55628033,108620.0,108610.0,0.001]
[1756479296859,0.1841451,108610.0,108600.0,0.184162]
[1756479297070,1.12482096,108610.0,108600.0,0.184162]
[1756479297318,0.21832466,108610.0,108600.0,0.186262]
[1756479297528,0.03202956,108610.0,108600.0,0.186262]
[1756479297735,0.02562365,108610.0,108600.0,0.186262]
[1756479297946,0.00854122,108610.0,108600.0,0.186262]
[1756479298156,0.01069122,108610.0,108600.0,0.184162]
[1756479298363,0.01387122,108610.0,108600.0,0.184162]
[1756479298586,0.02561551,108610.0,108600.0,0.186262]
[1756479299009,0.00854122,108610.0,108600.0,0.186262]
[1756479299682,0.00854122,108610.0,108600.0,0.187262]
[1756479299885,0.19483632,108610.0,108600.0,0.187262]
[1756479300144,0.00854122,108610.0,108600.0,0.187262]
[1756479300612,0.19801632,108610.0,108600.0,0.18516206]
[1756479300843,1.12800174,108610.0,108600.0,0.18516206]
[1756479301071,1.11091742,108610.0,108600.0,0.18516206]
[1756479301277,0.1980158,108610.0,108600.0,0.18516206]
[1756479301537,1.12800085,108610.0,108600.0,0.18716206]
[1756479301755,0.94385575,108610.0,108600.0,0.18716206]
[1756479301992,0.03735945,108610.0,108600.0,0.18716206]